bitfinex/quotes_SOLUSD_20250705
["timestamp","ask_amount","ask_price","bid_price","bid_amount"]
[1751746000383,6.83225834,147.01,146.97,4.52991399]
[1751746000584,5.08395305,147.0,146.97,4.52991399]
[1751746000889,5.08395305,146.99,146.97,4.52991399]
[1751746001081,5.08395305,146.98,146.97,4.52991399]
[1751746002993,5.08395305,147.0,146.97,4.52991399]
[1751746003173,5.08395305,146.99,146.97,4.52991399]
[1751746003487,6.83240796,147.01,146.97,4.52991399]
[1751746003693,5.08504566,147.0,146.97,4.52991399]
[1751746003989,5.08504566,146.99,146.97,4.52991399]
[1751746004191,5.08504566,146.98,146.96,11.56991399]
[1751746004508,6.80286854,147.0,146.96,11.56991399]
[1751746004790,5.08581315,146.99,146.96,11.56991399]
[1751746004987,5.08581315,146.98,146.96,11.56991399]
[1751746005191,6.80286854,147.0,146.96,11.56991399]
[1751746005491,5.08598488,146.99,146.96,11.56991399]
[1751746005689,5.08598488,146.98,146.96,11.56991399]
[1751746005892,6.80286854,147.0,146.96,11.56991399]
[1751746006079,0.03,147.01,146.99,4.52991399]
[1751746006276,0.03,147.01,147.0,4.52991399]
[1751746007083,5.11540991,147.01,147.0,4.52991399]
[1751746010195,11.91774803,147.01,146.98,26.0]
[1751746010385,5.08774565,147.0,146.96,6.25021399]
[1751746010697,5.08774565,146.99,146.96,8.524736]
[1751746010895,0.03,147.01,146.98,4.52991399]
[1751746011082,5.08815811,147.0,146.99,4.52991399]
[1751746011783,5.08815811,147.0,146.99,7.07419993]
[1751746012094,5.08815811,147.0,146.96,8.524736]
[1751746012404,5.08815811,146.99,146.97,7.07419993]
[1751746012690,6.83253675,147.01,146.97,7.07419993]
[1751746012898,5.09074846,147.0,146.97,7.07419993]
[1751746013089,6.83253675,147.01,146.97,7.07419993]
[1751746013090,5.09074846,146.99,146.97,7.07419993]
[1751746013292,5.09074846,146.98,146.97,7.07419993]
[1751746014299,5.09074846,146.98,146.96,8.52485821]
[1751746014499,6.83253675,147.01,146.97,7.07419993]
[1751746014696,5.09372662,147.0,146.97,7.07419993]
[1751746014901,5.09372662,146.99,146.97,7.07419993]
[1751746015083,5.09372662,146.98,146.97,7.07419993]
[1751746017810,5.09372662,146.98,146.97,13.87830961]
[1751746018511,0.03,147.01,146.97,13.87830961]
[1751746018699,5.09478456,147.0,146.99,7.07419993]
[1751746019303,5.09478456,147.0,146.99,25.72384879]
[1751746019512,0.03,147.01,147.0,20.19674886]
[1751746019713,0.03,147.01,147.0,27.27094879]
[1751746019904,0.03,147.01,147.0,34.07366987]
[1751746021614,5.12396833,147.01,147.0,15.42402101]
[1751746022403,0.03,147.01,147.0,15.42402101]
[1751746022713,5.12177124,147.01,147.0,15.42402101]
[1751746023613,0.03,147.01,147.0,15.42402101]
[1751746027619,0.03,147.01,147.0,1.5471]
[1751746027793,0.03,147.01,147.0,7.07419993]
[1751746028916,0.03,147.01,146.99,6.80298514]
[1751746029135,0.03,147.01,147.0,7.07419993]
[1751746029322,5.11807,147.01,147.0,7.07419993]
[1751746031719,5.11807,147.01,147.0,13.87692101]
[1751746032225,5.11807,147.01,147.0,7.07419993]
[1751746032728,0.03,147.01,147.0,7.07419993]
[1751746033108,0.03,147.01,147.0,7.13419993]
[1751746033308,5.11785263,147.01,147.0,26.06]
[1751746033509,5.11785263,147.01,147.0,33.13419993]
[1751746035629,5.11785263,147.01,147.0,39.93692101]
[1751746035835,5.11785263,147.01,147.0,37.38862235]
[1751746036028,5.11785263,147.01,147.0,56.03827121]
[1751746036329,0.03,147.01,147.0,56.03827121]
[1751746037920,0.03,147.01,147.0,58.5832831]
[1751746045831,0.03,147.01,147.0,65.6032831]
[1751746046235,0.03,147.01,147.0,39.6032831]
[1751746059626,0.03,147.01,147.0,25.72964886]
[1751746059828,0.03,147.01,147.0,7.08]
[1751746060239,5.12308304,147.01,147.0,11.60731404]
[1751746061951,5.12308304,147.01,147.0,7.08]
[1751746063139,18.27084138,147.01,147.0,0.06]
[1751746063337,5.12308304,147.01,147.0,4.58731404]
[1751746063550,5.12308304,147.01,147.0,0.06]
[1751746063733,5.12308304,147.01,147.0,4.58731404]
[1751746064848,5.12308304,147.01,147.0,0.06]
[1751746065050,5.12308304,147.01,147.0,4.58731404]
[1751746065734,5.12308304,147.01,147.0,7.13269627]
[1751746070061,5.12308304,147.01,147.0,0.06]
[1751746070855,5.12308304,147.01,147.0,7.13269627]
[1751746071062,5.12308304,147.01,147.0,0.06]
[1751746071246,18.29586348,147.01,147.0,0.06]
[1751746071560,11.92534138,147.01,147.0,0.06]
[1751746071762,18.43802505,147.01,147.0,0.06]
[1751746071943,37.54786958,147.01,146.96,0.06]
[1751746072144,6.36974977,146.99,146.96,0.06]
[1751746072461,5.09308304,146.98,146.96,0.06]
[1751746072640,13.26098304,146.97,146.96,0.06]
[1751746073145,19.63073281,146.97,146.96,0.06]
[1751746073337,13.26098304,146.97,146.96,0.06]
[1751746073540,19.76409098,146.97,146.96,0.06]
[1751746073743,13.40314461,146.97,146.96,0.06]
[1751746074153,20.20725429,146.97,146.96,0.06]
[1751746074762,26.56192256,146.97,146.96,0.06]
[1751746075461,20.20725429,146.97,146.96,0.06]
[1751746076141,54.70725429,146.97,146.96,0.06]
[1751746078471,203.50725429,146.97,146.96,0.06]
[1751746080272,203.36509272,146.97,146.96,0.06]
[1751746080964,248.15690315,146.97,146.96,0.06]
[1751746081367,18.79181043,146.96,146.94,0.06]
[1751746081550,5.09308304,146.95,146.94,0.06]
[1751746081751,153.89308304,146.95,146.94,0.06]
[1751746082363,26.0,146.92,146.9,0.06]
[1751746082604,84.38489347,146.92,146.9,0.06]
[1751746083357,90.73956174,146.92,146.9,0.06]
[1751746084267,72.3995083,146.92,146.9,0.06]
[1751746084445,46.3995083,146.92,146.9,0.06]
[1751746084649,5.09308304,146.92,146.9,0.06]
[1751746084845,5.09308304,146.93,146.9,0.06]
[1751746086158,6.80596202,146.93,146.9,0.06]
[1751746088477,60.56,146.94,146.9,0.06]
[1751746088683,67.36567182,146.94,146.9,7.13269627]
[1751746089563,26.0,146.94,146.91,7.27269627]
[1751746090103,26.0,146.94,146.91,0.2]
[1751746091578,32.80550643,146.94,146.91,0.2]
[1751746092970,41.3651903,146.95,146.91,0.2]
[1751746093172,6.80410968,146.97,146.93,7.07269627]
[1751746093378,11.85005565,146.97,146.93,7.07269627]
[1751746093565,5.04594597,146.96,146.93,7.07269627]
[1751746094090,11.85005565,146.97,146.93,7.07269627]
[1751746096176,6.80410968,146.97,146.93,7.07269627]
[1751746096379,11.85139599,146.97,146.93,7.07269627]
[1751746098403,0.03,146.96,146.91,0.2]
[1751746098767,0.03,146.96,146.91,7.27269627]
[1751746099480,5.07728631,146.96,146.91,7.27269627]
[1751746099686,6.80503572,146.95,146.91,0.2]
[1751746102200,11.85232203,146.95,146.91,0.2]
[1751746105799,11.85300316,146.94,146.91,0.2]
[1751746105978,5.04728631,146.93,146.91,0.2]
[1751746106395,5.04728631,146.93,146.91,7.27269627]
[1751746106588,6.80571685,146.94,146.91,7.27269627]
[1751746106903,11.85300316,146.94,146.91,7.27269627]
[1751746107073,5.04728631,146.93,146.91,7.27269627]
[1751746107278,6.80571685,146.94,146.91,7.27269627]
[1751746107605,11.85300316,146.94,146.91,7.27269627]
[1751746107896,5.04728631,146.93,146.91,7.27269627]
[1751746108288,6.80571685,146.94,146.91,7.27269627]
[1751746108487,11.87083029,146.94,146.91,7.27269627]
[1751746108800,5.06511344,146.93,146.91,7.27269627]
[1751746109211,6.80571685,146.94,146.91,0.2]
[1751746109509,11.87083029,146.94,146.91,7.27269627]
[1751746109680,5.06511344,146.93,146.91,7.27269627]
[1751746110087,6.80571685,146.94,146.91,7.27269627]
[1751746110397,5.06511344,146.93,146.91,7.27269627]
[1751746110782,5.06511344,146.93,146.91,0.2]
[1751746111505,6.80571685,146.94,146.91,0.2]
[1751746111506,5.06511344,146.92,146.91,0.2]
[1751746111883,11.8715387,146.92,146.91,0.2]
[1751746117402,18.2029305,146.92,146.91,0.2]
[1751746122100,11.8715387,146.92,146.9,0.06]
[1751746122411,5.06511344,146.91,146.9,0.06]
[1751746122624,195.17200201,146.91,146.9,0.06]
[1751746136731,190.10688857,146.91,146.9,0.06]
[1751746136914,195.19492505,146.91,146.9,0.06]
[1751746137121,195.19492505,146.91,146.88,0.06]
[1751746137122,203.66964581,146.91,146.88,0.06]
[1751746137311,6.35919061,146.89,146.88,0.06]
[1751746137511,45.90722709,146.89,146.88,0.06]
[1751746139238,52.71504246,146.89,146.88,0.06]
[1751746140037,5.08803648,146.89,146.88,0.06]
[1751746141037,11.89585185,146.89,146.88,0.06]
[1751746147535,46.35585185,146.89,146.88,0.06]
[1751746147841,52.71919518,146.89,146.88,0.06]
[1751746148330,46.35731751,146.89,146.88,0.06]
[1751746149127,52.71919518,146.89,146.88,0.06]
[1751746156148,46.35731751,146.89,146.86,0.06]
[1751746156336,11.46021692,146.88,146.86,0.06]
[1751746156531,5.08950214,146.87,146.86,0.06]
[1751746157347,5.09701613,146.87,146.86,0.06]
[1751746158754,11.90575855,146.87,146.86,0.06]
[1751746159943,5.09701613,146.87,146.86,0.06]
[1751746166257,11.4682863,146.87,146.86,0.06]
[1751746166460,18.27702872,146.87,146.86,0.06]
[1751746171561,11.4682863,146.87,146.86,0.06]
[1751746171768,18.27702872,146.87,146.86,0.06]
[1751746172765,11.4682863,146.87,146.86,0.06]
[1751746178962,11.4682863,146.87,146.86,4.59645698]
[1751746179162,11.4682863,146.87,146.86,0.06]
[1751746185172,18.27702872,146.87,146.86,0.06]
[1751746186475,11.90575855,146.87,146.86,0.06]
[1751746187716,18.29279955,146.87,146.86,0.06]
[1751746194182,11.90575855,146.87,146.85,4.73645698]
[1751746194478,11.48527993,146.86,146.85,4.73645698]
[1751746195975,6.80874242,146.87,146.85,4.73645698]
[1751746196180,0.03,146.88,146.85,4.73645698]
[1751746196391,6.38729978,146.86,146.85,4.73645698]
[1751746196562,11.4971396,146.86,146.85,4.73645698]
[1751746198489,5.10983982,146.86,146.85,4.73645698]
[1751746198986,5.1090016,146.86,146.85,4.73645698]
[1751746204168,5.1090016,146.86,146.85,0.2]
[1751746210396,5.1090016,146.86,146.85,4.73645698]
[1751746218179,5.1090016,146.86,146.85,0.2]
[1751746218494,5.1090016,146.86,146.85,4.73645698]
[1751746224499,5.1090016,146.86,146.85,11.54612671]
[1751746228808,5.1090016,146.86,146.85,11.68828828]
[1751746228985,0.03,146.88,146.87,20.41171043]
[1751746229192,0.03,146.91,146.89,0.14216157]
[1751746229390,0.03,146.91,146.9,4.53645698]
[1751746230499,0.03,146.91,146.9,11.34380892]
[1751746236312,0.03,146.91,146.9,11.33857406]
[1751746239114,0.03,146.91,146.9,4.53122212]
[1751746239415,0.03,146.91,146.88,4.53122212]
[1751746239997,4.56122212,146.91,146.86,11.53122212]
[1751746240314,4.53122212,146.89,146.86,7.0]
[1751746240721,0.03,146.91,146.86,7.0]
[1751746240894,9.60947484,146.9,146.86,7.0]
[1751746241099,5.07825272,146.89,146.86,7.0]
[1751746242420,5.07825272,146.89,146.86,11.53122212]
[1751746247801,5.07825272,146.89,146.86,4.53122212]
[1751746249605,5.08060594,146.89,146.86,4.53122212]
[1751746249806,5.08060594,146.89,146.86,4.59122212]
[1751746250008,5.11060594,146.89,146.86,4.59122212]
[1751746252816,5.11060594,146.89,146.87,4.53122212]
[1751746253019,0.03,146.89,146.88,4.53122212]
[1751746253222,5.11060594,146.89,146.88,4.53122212]
[1751746253410,0.03,146.89,146.88,4.53122212]
[1751746253609,5.11060594,146.89,146.88,4.53122212]
[1751746253908,0.03,146.89,146.88,4.53122212]
[1751746255117,0.03,146.89,146.88,11.33950098]
[1751746257702,0.03,146.89,146.88,48.25619989]
[1751746258727,0.03,146.89,146.88,30.13131141]
[1751746264735,0.03,146.89,146.86,0.06]
[1751746265214,5.11363164,146.89,146.88,4.53122212]
[1751746265411,0.03,146.89,146.87,4.53122212]
[1751746267133,0.03,146.89,146.88,4.53122212]
[1751746267337,5.1157008,146.89,146.88,4.53122212]
[1751746267626,0.03,146.89,146.88,4.53122212]
[1751746268213,5.11598309,146.89,146.88,4.53122212]
[1751746268415,0.03,146.89,146.86,0.06]
[1751746268614,5.11598309,146.89,146.88,4.53122212]
[1751746271242,11.92379846,146.89,146.86,0.06]
[1751746271432,9.61720521,146.88,146.86,0.06]
[1751746271738,5.08598309,146.87,146.86,0.06]
[1751746273116,11.89472551,146.87,146.86,0.06]
[1751746279316,5.08598309,146.87,146.86,7.14851484]
[1751746291251,0.03,146.89,146.86,13.95772088]
[1751746291437,0.03,146.89,146.88,7.08851484]
[1751746291640,5.12139178,146.89,146.88,7.08851484]
[1751746295644,0.03,146.89,146.88,7.08851484]
[1751746295834,0.03,146.89,146.88,4.53348315]
[1751746312343,0.03,146.89,146.88,11.34176201]
[1751746312550,0.03,146.89,146.88,30.13357244]
[1751746313748,0.03,146.89,146.88,48.26750504]
[1751746315253,0.03,146.89,146.88,48.32750504]
[1751746320678,0.03,146.91,146.88,49.90650504]
[1751746320983,0.03,146.91,146.9,30.53348315]
[1751746321976,0.03,146.91,146.9,37.34083509]
[1751746324971,0.03,146.91,146.9,68.93264552]
[1751746325173,0.03,146.96,146.93,6.80596202]
[1751746325468,0.03,146.96,146.95,4.53348315]
[1751746325678,5.11463801,146.96,146.95,4.53348315]
[1751746326383,0.03,146.96,146.95,4.53348315]
[1751746326768,5.11463801,146.96,146.95,4.53348315]
[1751746326968,0.03,146.96,146.95,4.53348315]
[1751746327380,5.11463801,146.96,146.95,4.53348315]
[1751746327590,0.03,146.96,146.95,4.53348315]
[1751746329978,0.03,146.96,146.95,11.33851887]
[1751746331096,0.03,146.96,146.95,30.1303293]
[1751746332872,0.03,146.96,146.95,48.94476547]
[1751746335294,0.03,146.96,146.95,25.59684615]
[1751746335493,0.03,146.96,146.95,30.1303293]
[1751746338296,0.03,146.96,146.95,23.32529358]
[1751746341518,0.03,146.96,146.95,30.1303293]
[1751746346686,0.03,146.96,146.95,25.59684615]
[1751746346885,0.03,146.96,146.95,30.1303293]
[1751746351900,0.03,146.96,146.95,4.53348315]
[1751746352299,0.03,146.96,146.94,4.53348315]
[1751746355112,0.03,146.96,146.93,4.53348315]
[1751746356013,0.03,146.96,146.94,4.53348315]
[1751746360220,5.11378671,146.96,146.94,4.53348315]
[1751746361301,0.03,146.96,146.95,4.53348315]
[1751746361502,5.11531175,146.96,146.95,4.53348315]
[1751746366511,5.11531175,146.96,146.93,6.80590574]
[1751746366710,0.03,146.96,146.95,4.53348315]
[1751746366910,5.1203943,146.96,146.95,4.53348315]
[1751746380845,5.1203943,146.96,146.94,4.53348315]
[1751746381048,5.0903943,146.95,146.94,4.53348315]
[1751746384463,5.0903943,146.95,146.93,4.53348315]
[1751746384671,5.0903943,146.94,146.93,4.53348315]
[1751746385971,5.0903943,146.94,146.93,30.53348315]
[1751746388476,5.0903943,146.94,146.93,4.53348315]
[1751746388666,5.0903943,146.94,146.93,30.53348315]
[1751746389480,5.0903943,146.94,146.93,4.53348315]
[1751746403601,5.10134903,146.94,146.93,4.53348315]
[1751746412405,5.10134903,146.94,146.91,6.86688857]
[1751746412610,5.10134903,146.93,146.92,4.53348315]
[1751746416316,5.10134903,146.93,146.91,6.86688857]
[1751746416504,6.40668629,146.96,146.92,4.53348315]
[1751746416816,5.10222096,146.95,146.92,4.53348315]
[1751746417007,5.10222096,146.94,146.92,4.53348315]
[1751746417209,5.10222096,146.93,146.92,4.53348315]
[1751746417789,5.10222096,146.93,146.92,37.33990841]
[1751746421517,5.10222096,146.93,146.92,32.80642526]
[1751746421715,5.10222096,146.93,146.92,30.53348315]
[1751746423107,5.13222096,146.93,146.92,30.53348315]
[1751746424823,5.13222096,146.93,146.91,0.06]
[1751746425127,5.10222096,146.92,146.91,0.06]
[1751746425809,5.10341096,146.92,146.91,0.06]
[1751746428214,16.44331937,146.92,146.91,0.06]
[1751746429128,9.63689411,146.92,146.91,0.06]
[1751746432631,5.10341096,146.92,146.91,0.06]
[1751746438521,5.10341096,146.92,146.91,4.59348315]
[1751746439813,0.03,146.93,146.92,6.80642526]
[1751746440010,0.03,146.93,146.92,11.33990841]
[1751746462764,0.03,146.93,146.91,0.06]
[1751746463082,4.56348315,146.93,146.91,0.06]
[1751746463360,9.62445675,146.92,146.91,0.06]
[1751746464964,16.43088201,146.92,146.91,0.06]
[1751746476787,5.0909736,146.92,146.91,0.06]
[1751746488404,5.1209736,146.92,146.91,0.06]
[1751746495112,11.92739886,146.92,146.91,0.06]
[1751746500717,11.92739886,146.92,146.91,4.59348315]
[1751746500718,5.1209736,146.92,146.91,4.59348315]
[1751746501104,0.03,146.93,146.92,18.79181043]
[1751746501308,0.03,146.93,146.92,30.30529358]
[1751746501933,0.03,146.93,146.92,37.11171884]
[1751746502940,0.03,146.93,146.92,37.79236136]
[1751746504353,0.03,146.93,146.92,43.59236136]
[1751746504767,0.03,146.93,146.92,42.91171884]
[1751746504960,0.03,146.93,146.92,31.57181043]
[1751746505159,0.03,146.93,146.92,17.31348315]
[1751746507984,0.03,146.93,146.92,19.8593535]
[1751746510365,0.03,146.93,146.92,14.0593535]
[1751746513686,0.03,146.93,146.92,20.86577876]
[1751746521698,0.03,146.93,146.92,39.65758919]
[1751746522078,0.03,146.93,146.92,45.45758919]
[1751746527976,0.03,146.96,146.95,44.64964886]
[1751746528178,0.03,146.96,146.95,51.87116393]
[1751746528997,0.03,146.96,146.95,58.67619965]
[1751746529806,0.03,146.96,146.95,56.12442915]
[1751746533880,0.03,146.96,146.95,61.92442915]
[1751746542411,0.03,146.96,146.95,81.55926115]
[1751746544623,0.03,146.96,146.95,63.44892915]
[1751746552623,0.03,146.96,146.95,50.59181043]
[1751746552798,0.03,146.96,146.92,17.307583]
[1751746552999,4.557583,146.96,146.92,12.78]
[1751746553216,4.557583,146.96,146.92,38.78]
[1751746553417,5.08527147,146.95,146.94,26.0]
[1751746553602,0.03,146.96,146.94,26.0]
[1751746553800,7.11027245,146.96,146.94,26.0]
[1751746554001,0.03,146.96,146.94,26.0]
[1751746554524,0.03,146.96,146.93,7.14027245]
[1751746554700,0.03,146.96,146.94,7.08027245]
[1751746556319,0.03,146.96,146.94,13.88565292]
[1751746557026,0.03,146.96,146.94,6.80538047]
[1751746557225,0.03,146.96,146.94,13.88565292]
[1751746559432,0.03,146.96,146.93,7.14027245]
[1751746559726,5.08724049,146.95,146.93,0.06]
[1751746559917,0.03,146.96,146.93,0.06]
[1751746560118,5.08748132,146.95,146.93,0.06]
[1751746560316,0.03,146.96,146.93,0.06]
[1751746560517,5.087819,146.95,146.93,0.06]
[1751746560709,0.03,146.96,146.93,0.06]
[1751746560910,5.087819,146.95,146.93,0.06]
[1751746561113,0.03,146.96,146.93,0.06]
[1751746561322,5.087819,146.95,146.93,0.06]
[1751746561514,0.03,146.96,146.93,0.06]
[1751746561718,5.08782653,146.95,146.93,7.14027245]
[1751746561920,0.03,146.96,146.93,13.94615934]
[1751746562116,5.08782791,146.95,146.94,7.08027245]
[1751746564036,5.08782791,146.95,146.94,13.88577129]
[1751746567345,0.03,146.96,146.94,13.88577129]
[1751746569044,5.08761404,146.95,146.94,13.88577129]
[1751746571552,0.03,146.96,146.94,13.88577129]
[1751746575160,0.03,146.96,146.94,7.08027245]
[1751746575754,0.03,146.96,146.94,4.53033726]
[1751746579670,0.03,146.96,146.93,11.39611469]
[1751746580566,0.03,146.96,146.94,4.53033726]
[1751746580767,0.03,146.96,146.95,23.17998612]
[1751746581068,0.03,146.96,146.95,23.32214769]
[1751746581771,0.03,146.96,146.95,18.79181043]
[1751746581967,0.03,146.96,146.95,23.32214769]
[1751746582658,0.03,146.96,146.95,30.12718341]
[1751746595589,5.12430179,146.96,146.95,30.12718341]
[1751746596285,5.12430179,146.96,146.95,23.32214769]
[1751746602396,5.12682409,146.96,146.95,23.32214769]
[1751746603897,5.12682409,146.96,146.95,18.79181043]
[1751746604096,5.12682409,146.96,146.95,23.32214769]
[1751746614905,5.12682409,146.96,146.95,18.79181043]
[1751746615099,5.12682409,146.96,146.95,23.32214769]
[1751746617707,5.12682409,146.96,146.94,5.8]
[1751746617912,5.09682409,146.95,146.94,5.8]
[1751746622710,5.09682409,146.95,146.93,11.39624742]
[1751746622911,5.09682409,146.94,146.93,30.18805785]
[1751746625915,5.09682409,146.94,146.93,25.65772059]
[1751746626120,5.09682409,146.94,146.93,18.85181043]
[1751746626314,5.09682409,146.94,146.93,23.38214769]
[1751746627517,5.09682409,146.94,146.93,30.18810971]
[1751746630315,0.03,146.96,146.93,30.18810971]
[1751746630522,5.09953608,146.95,146.94,4.53033726]
[1751746637426,5.09953608,146.95,146.93,23.38214769]
[1751746637607,5.09953608,146.94,146.93,23.38214769]
[1751746638208,5.09953608,146.94,146.93,30.18810971]
[1751746638626,0.03,146.96,146.93,30.18810971]
[1751746638830,5.09973411,146.95,146.94,4.53033726]
[1751746644041,5.09973411,146.95,146.94,11.3358361]
[1751746644714,5.09973411,146.95,146.94,4.53033726]
[1751746648648,5.09973411,146.95,146.94,11.3358361]
[1751746650442,5.09973411,146.95,146.94,6.80549884]
[1751746650644,5.09973411,146.95,146.94,11.3358361]
[1751746655938,5.09973411,146.95,146.94,6.80549884]
[1751746656259,5.09973411,146.95,146.93,35.9879171]
[1751746656459,5.09973411,146.94,146.93,35.9879171]
[1751746665465,5.09973411,146.94,146.93,42.9679171]
[1751746670173,5.09973411,146.94,146.93,37.1679171]
[1751746676080,5.09973411,146.94,146.93,42.9679171]
[1751746680659,0.03,146.95,146.94,18.79181043]
[1751746680860,5.13641849,146.95,146.94,23.32214769]
[1751746681673,5.13641849,146.95,146.94,30.12764653]
[1751746681871,5.13641849,146.95,146.94,35.92764653]
[1751746682075,0.03,146.95,146.94,35.92764653]
[1751746691198,0.03,146.95,146.94,36.60819641]
[1751746693599,0.03,146.96,146.95,41.44349673]
[1751746693981,0.03,146.96,146.95,23.32214769]
[1751746695693,0.03,146.96,146.95,30.12718341]
[1751746696703,0.03,146.96,146.95,35.92718341]
[1751746722321,0.03,147.01,146.98,26.0]
[1751746722539,5.09015512,147.0,146.99,4.53033726]
[1751746723438,5.09015512,147.0,146.99,29.12214769]
[1751746723723,0.03,147.01,146.99,29.12214769]
[1751746723928,0.03,147.01,147.0,11.33305834]
[1751746724224,5.12093066,147.01,146.99,5.8]
[1751746724420,0.03,147.01,146.99,5.8]
[1751746724628,0.03,147.01,146.99,12.60316998]
[1751746724828,5.09206521,147.0,146.99,12.60316998]
[1751746729260,5.09206521,147.0,146.99,6.80316998]
[1751746750083,5.09206521,147.0,146.98,50.09382125]
[1751746750276,5.09206521,146.99,146.98,68.88563168]
[1751746762983,5.09206521,146.99,146.98,68.88563168]
[1751746763991,5.10289773,146.99,146.98,68.88563168]
[1751746764299,0.03,147.01,146.98,12.76]
[1751746764504,9.63324478,147.0,146.98,12.76]
[1751746764691,5.10290752,146.99,146.98,6.96]
[1751746765199,15.9945453,146.99,146.94,0.06]
[1751746765381,12.28503726,146.95,146.94,0.06]
[1751746765584,17.38794478,146.95,146.94,0.06]
[1751746766181,30.55428102,146.95,146.94,0.06]
[1751746766488,24.1929805,146.95,146.94,0.06]
[1751746766691,30.55428102,146.95,146.94,0.06]
[1751746769609,24.1929805,146.95,146.94,0.06]
[1751746787912,22.5623805,146.95,146.94,0.06]
[1751746788617,16.4382805,146.95,146.94,0.06]
[1751746800932,11.90794324,146.95,146.94,0.06]
[1751746801228,16.4382805,146.95,146.94,0.06]
[1751746802098,5.10290752,146.95,146.94,0.06]
[1751746803329,16.4382805,146.95,146.94,0.06]
[1751746806546,22.79958102,146.95,146.94,0.06]
[1751746807363,16.4382805,146.95,146.93,0.06]
[1751746807544,22.79941385,146.94,146.93,0.06]
[1751746808657,16.43874362,146.94,146.93,0.06]
[1751746809246,24.95514332,146.94,146.91,0.06]
[1751746809431,4.53033726,146.92,146.91,0.06]
[1751746809643,9.63324478,146.92,146.91,0.06]
[1751746811959,16.43967004,146.92,146.91,0.06]
[1751746815367,22.8161847,146.92,146.91,0.06]
[1751746817658,24.94335398,146.92,146.91,0.06]
[1751746818970,16.43967004,146.92,146.91,0.06]
[1751746820158,11.90933278,146.92,146.91,0.06]
[1751746820359,16.43967004,146.92,146.91,0.06]
[1751746822391,16.43967004,146.92,146.88,11.55033726]
[1751746822592,11.47295733,146.91,146.88,11.55033726]
[1751746822796,5.10290752,146.9,146.88,11.55033726]
[1751746822972,5.10290752,146.89,146.88,11.55033726]
[1751746829202,5.10290752,146.89,146.88,18.35861612]
[1751746832801,5.10290752,146.89,146.88,11.39861612]
[1751746836509,0.03,146.91,146.88,11.39861612]
[1751746836698,5.09363477,146.9,146.89,4.53033726]
[1751746838508,5.09413311,146.9,146.89,4.53033726]
[1751746843509,0.03,146.91,146.89,4.53033726]
[1751746843709,0.03,146.91,146.9,4.53033726]
[1751746844620,5.12602931,146.91,146.9,4.53033726]
[1751746846520,5.12602931,146.91,146.9,11.3376892]
[1751746854923,5.12602931,146.91,146.89,25.45746423]
[1751746855109,0.03,146.91,146.9,4.53033726]
[1751746855420,5.12845619,146.91,146.9,4.53033726]
[1751746856822,5.12845619,146.91,146.9,11.3376892]
[1751746857931,5.12845619,146.91,146.9,11.3976892]
[1751746860911,5.12845619,146.91,146.9,0.06]
[1751746861215,22.83571866,146.91,146.9,0.06]
[1751746862713,18.3053814,146.91,146.9,0.06]
[1751746865231,22.83571866,146.91,146.9,0.06]
[1751746865415,16.46568202,146.91,146.88,0.06]
[1751746865612,6.37109684,146.89,146.88,0.06]
[1751746865820,11.46955303,146.89,146.88,0.06]
[1751746866130,5.09845619,146.89,146.88,0.06]
[1751746876238,6.80742309,146.9,146.88,0.06]
[1751746876441,11.90037626,146.89,146.88,0.06]
[1751746883551,5.09256089,146.89,146.88,0.06]
[1751746884235,11.90037626,146.89,146.88,0.06]
[1751746888350,5.09256089,146.89,146.88,0.06]
[1751746893649,11.90037626,146.89,146.88,0.06]
[1751746901243,18.26607737,146.89,146.88,0.06]
[1751746902147,6.80781537,146.89,146.88,0.06]
[1751746902446,18.2659192,146.89,146.88,0.06]
[1751746904457,11.45810383,146.89,146.88,0.06]
[1751746908158,5.09249059,146.89,146.87,4.53033726]
[1751746908494,5.09249059,146.88,146.87,4.53033726]
[1751746908965,11.46691791,146.88,146.87,4.53033726]
[1751746910443,5.09249059,146.88,146.87,4.53033726]
[1751746910840,5.09249059,146.88,146.87,11.33907968]